[Event "3rd HSK Youth Summer 2018"]
[Site "Hamburg"]
[Date "2018.07.28"]
[Round "7"]
[White "Stelmaszyk, Nico"]
[Black "Ehrlich, Roy"]
[Result "1/2-1/2"]
[ECO "C17"]
[WhiteElo "1975"]
[BlackElo "1893"]
[Annotator "NA"]
[PlyCount "39"]
[EventDate "2018.07.26"]
[EventType "swiss"]
[EventCountry "GER"]
[SourceTitle "playchess.com"]
[Source "ChessBase"]
[SourceQuality "1"]
[TimeControl "40/5400+30:900+30"]

1. e4 {[%emt 0:00:00]} e6 {[%emt 0:00:05]} 2. d4 {[%emt 0:00:00]} d5 {[%emt 0:00:03]} 3. Nc3 {[%emt 0:00:00]} Bb4 {[%emt 0:00:04]} 4. e5 {[%emt 0:00:00]} c5 {[%emt 0:00:03]} 5. a3 {[%emt 0:00:00]} Ba5 {[%emt 0:00:02]} 6. b4 {[%emt 0:01:03]} cxd4 {[%emt 0:00:05]} 7. Nb5 {[%emt 0:00:09]} Bc7 {[%emt 0:00:06]} 8. f4 {[%emt 0:00:08]} Ne7 {[%emt 0:00:09]} 9. Nf3 {[%emt 0:01:38]} Bd7 10. Nxc7+ {[%emt 0:00:57]} Qxc7 {[%emt 0:00:12]} 11. Bd3 {[%emt 0:00:16]} Ba4 {[%emt 0:00:07]} 12. O-O {[%emt 0:00:31]} Qb6 {[%emt 0:00:43]} 13. Bb2 {[%emt 0:00:43]} Nbc6 {[%emt 0:00:37]} 14. Qe2 {[%emt 0:11:22]} a6 {[%emt 0:00:45]} 15. Qf2 {[%emt 0:01:29]} Rc8 {[%emt 0:17:13]} 16. Kh1 {[%emt 0:12:14]} Bb5 {[%emt 0:06:11]} 17. Bxd4 {[%emt 0:09:01]} Nxd4 {[%emt 0:00:34]} 18. Nxd4 {[%emt 0:03:36]} Bxd3 {[%emt 0:00:39]} 19. cxd3 {[%emt 0:01:00]} Kd7 {[%emt 0:10:15]} 20. Qb2 {[%emt 0:11:10]} 1/2-1/2

[Event "3rd HSK Youth Summer 2018"]
[Site "Hamburg"]
[Date "2018.07.28"]
[Round "7"]
[White "Shocron, Alon"]
[Black "Caspi, Nimi"]
[Result "1-0"]
[ECO "A04"]
[WhiteElo "1817"]
[BlackElo "2014"]
[Annotator "NA"]
[PlyCount "50"]
[EventDate "2018.07.26"]
[EventType "swiss"]
[EventCountry "GER"]
[SourceTitle "playchess.com"]
[Source "ChessBase"]
[SourceQuality "1"]
[TimeControl "40/5400+30:900+30"]

1. Nf3 c5 2. c4 Nc6 3. g3 e5 4. d3 g6 5. Bg2 Bg7 6. O-O d6 7. Nc3 f5 8. Rb1 Nge7 9. Nd5 Nxd5 10. cxd5 Ne7 11. Bg5 h6 12. Bxe7 Qxe7 13. b4 b6 14. bxc5 bxc5 15. Qa4+ Bd7 16. Qa5 O-O 17. Rb7 e4 18. dxe4 fxe4 19. Nh4 Rf6 20. Bh3 Rd8 21. Qxa7 Qf8 22. Rxd7 Rxd7 23. Qxd7 g5 24. Be6+ Kh8 25. Nf5 Rg6 1-0

[Event "3rd HSK Youth Summer 2018"]
[Site "Hamburg"]
[Date "2018.07.28"]
[Round "7"]
[White "Meiwes, Thore"]
[Black "Globus, Or"]
[Result "0-1"]
[ECO "A45"]
[WhiteElo "1794"]
[BlackElo "2351"]
[Annotator "NA"]
[PlyCount "42"]
[EventDate "2018.07.26"]
[EventType "swiss"]
[EventCountry "GER"]
[SourceTitle "playchess.com"]
[Source "ChessBase"]
[SourceQuality "1"]
[TimeControl "40/5400+30:900+30"]

1. d4 {[%emt 0:00:00]} Nf6 {[%emt 0:00:04]} 2. Bf4 {[%emt 0:00:00]} g6 {[%emt 0:00:03]} 3. Nc3 {[%emt 0:00:00]} d5 {[%emt 0:00:03]} 4. e3 {[%emt 0:00:00]} Bg7 {[%emt 0:00:21]} 5. h4 {[%emt 0:00:00]} O-O {[%emt 0:01:12]} 6. h5 {[%emt 0:00:00]} c5 {[%emt 0:01:01]} 7. hxg6 {[%emt 0:00:09]} hxg6 {[%emt 0:02:15]} 8. dxc5 {[%emt 0:00:43]} Qa5 {[%emt 0:04:19]} 9. Bh6 {[%emt 0:14:28]} Bxh6 {[%emt 0:08:10]} 10. Rxh6 {[%emt 0:00:03]} Nc6 {[%emt 0:01:34]} 11. Rh4 {[%emt 0:09:10]} Qxc5 {[%emt 0:08:34]} 12. Qd2 {[%emt 0:00:32]} Rd8 {[%emt 0:02:01]} 13. O-O-O {[%emt 0:07:36]} Ne4 {[%emt 0:03:52]} 14. Nxe4 {[%emt 0:04:49]} dxe4 {[%emt 0:00:04]} 15. Qc3 {[%emt 0:02:39]} Rxd1+ {[%emt 0:00:53]} 16. Kxd1 {[%emt 0:00:02]} Qxc3 {[%emt 0:00:53]} 17. bxc3 {[%emt 0:00:02]} f5 {[%emt 0:08:47]} 18. Bc4+ {[%emt 0:01:40]} Kg7 {[%emt 0:00:04]} 19. Ne2 {[%emt 0:06:35]} Ne5 {[%emt 0:01:16]} 20. Bb3 {[%emt 0:02:38]} Ng4 {[%emt 0:01:04]} 21. Ke1 {[%emt 0:02:51]} e5 {[%emt 0:00:38]} 0-1

[Event "3rd HSK Youth Summer 2018"]
[Site "Hamburg"]
[Date "2018.07.28"]
[Round "7"]
[White "Kotler, Yiftah"]
[Black "Meyling, Lennart"]
[Result "1/2-1/2"]
[ECO "B06"]
[WhiteElo "1672"]
[BlackElo "2050"]
[Annotator "NA"]
[PlyCount "47"]
[EventDate "2018.07.26"]
[EventType "swiss"]
[EventCountry "GER"]
[SourceTitle "playchess.com"]
[Source "ChessBase"]
[SourceQuality "1"]
[TimeControl "40/5400+30:900+30"]

1. e4 {[%emt 0:00:00]} g6 {[%emt 0:00:06]} 2. Nc3 {[%emt 0:00:00]} Bg7 {[%emt 0:00:08]} 3. g3 {[%emt 0:00:00]} d6 {[%emt 0:00:12]} 4. Bg2 {[%emt 0:00:10]} h6 {[%emt 0:00:47]} 5. Nge2 {[%emt 0:01:51]} e6 {[%emt 0:00:37]} 6. O-O {[%emt 0:00:56]} Ne7 {[%emt 0:00:13]} 7. d3 {[%emt 0:03:26]} O-O {[%emt 0:01:08]} 8. f4 {[%emt 0:00:51]} d5 {[%emt 0:04:38]} 9. h3 {[%emt 0:05:27]} a6 {[%emt 0:02:53]} 10. a4 {[%emt 0:01:26]} b6 {[%emt 0:03:48]} 11. g4 {[%emt 0:09:16]} f5 {[%emt 0:04:17]} 12. e5 {[%emt 0:03:34]} Ra7 {[%emt 0:01:09]} 13. Ng3 {[%emt 0:11:33]} d4 {[%emt 0:02:59]} 14. Nce2 {[%emt 0:05:13]} Bb7 {[%emt 0:00:29]} 15. gxf5 {[%emt 0:01:26]} Bxg2 {[%emt 0:01:06]} 16. Kxg2 {[%emt 0:00:41]} Nxf5 {[%emt 0:02:58]} 17. Nxf5 {[%emt 0:00:21]} gxf5 {[%emt 0:00:47]} 18. Ng3 {[%emt 0:00:56]} Kh7 {[%emt 0:01:42]} 19. Kh2 {[%emt 0:05:27]} c5 {[%emt 0:01:41]} 20. Qf3 {[%emt 0:04:29]} Rg8 {[%emt 0:00:52]} 21. Rg1 {[%emt 0:00:57]} Bh8 {[%emt 0:04:37]} 22. Bd2 {[%emt 0:02:36]} Rag7 {[%emt 0:00:28]} 23. Rg2 {[%emt 0:02:06]} Qe8 {[%emt 0:01:45]} 24. b3 {[%emt 0:01:28]} 1/2-1/2

[Event "3rd HSK Youth Summer 2018"]
[Site "Hamburg"]
[Date "2018.07.28"]
[Round "7"]
[White "Glatt, Oded"]
[Black "Holinka, Henning"]
[Result "0-1"]
[ECO "B06"]
[WhiteElo "1575"]
[BlackElo "2146"]
[Annotator "NA"]
[PlyCount "49"]
[EventDate "2018.07.26"]
[EventType "swiss"]
[EventCountry "GER"]
[SourceTitle "playchess.com"]
[Source "ChessBase"]
[SourceQuality "1"]
[TimeControl "40/5400+30:900+30"]

1. e4 {[%emt 0:00:00]} g6 {[%emt 0:00:06]} 2. d4 {[%emt 0:00:00]} Bg7 {[%emt 0:00:12]} 3. Nc3 {[%emt 0:00:00]} a6 {[%emt 0:00:12]} 4. f4 {[%emt 0:00:03]} d6 {[%emt 0:00:07]} 5. Nf3 {[%emt 0:00:27]} b5 {[%emt 0:00:10]} 6. Bd3 {[%emt 0:00:37]} Nd7 {[%emt 0:00:24]} 7. e5 {[%emt 0:00:56]} c5 {[%emt 0:00:24]} 8. Be4 {[%emt 0:00:26]} Rb8 {[%emt 0:00:11]} 9. O-O {[%emt 0:00:37]} cxd4 {[%emt 0:00:58]} 10. Nxd4 {[%emt 0:00:18]} dxe5 {[%emt 0:00:09]} 11. Nc6 {[%emt 0:00:26]} Qb6+ {[%emt 0:00:06]} 12. Kh1 {[%emt 0:00:14]} f5 {[%emt 0:00:49]} 13. Nxb8 {[%emt 0:02:34]} Qxb8 {[%emt 0:01:14]} 14. Bd5 {[%emt 0:04:56]} Ngf6 {[%emt 0:01:49]} 15. Be6 {[%emt 0:10:25]} e4 {[%emt 0:04:10]} 16. Be3 {[%emt 0:06:37]} Qd6 {[%emt 0:04:08]} 17. Bb3 {[%emt 0:08:00]} Nc5 {[%emt 0:06:25]} 18. Bxc5 {[%emt 0:01:26]} Qxc5 {[%emt 0:00:09]} 19. Qd2 {[%emt 0:00:55]} e6 {[%emt 0:01:54]} 20. Rad1 {[%emt 0:01:14]} Ke7 {[%emt 0:00:43]} 21. Ne2 {[%emt 0:03:03]} Ng4 {[%emt 0:05:01]} 22. Nc1 {[%emt 0:09:14]} e3 {[%emt 0:17:14]} 23. Nd3 {[%emt 0:00:58]} exd2 {[%emt 0:02:37]} 24. Nxc5 {[%emt 0:00:39]} Ne3 {[%emt 0:00:08]} 25. c3 {[%emt 0:01:11]} 0-1